bitfinex/quotes_ETHUSD_20260305
["timestamp","ask_amount","ask_price","bid_price","bid_amount"]
[1772729276063,2.86809828,2082.0,2081.1,1.20128778]
[1772729276777,6.01237542,2082.0,2081.1,1.20128778]
[1772729276943,2.86809828,2081.9,2081.1,1.20128778]
[1772729277143,6.01237542,2081.9,2081.1,1.20128778]
[1772729277360,3.14427714,2081.8,2081.1,1.20128778]
[1772729277968,3.14427714,2081.8,2081.0,7.80876439]
[1772729277969,4.34521867,2081.7,2081.0,1.20129846]
[1772729278663,1.20094153,2081.7,2081.0,1.20129846]
[1772729278867,1.20082616,2081.9,2081.1,3.00361327]
[1772729279066,4.3451033,2081.9,2081.1,3.00361327]
[1772729279455,3.14427714,2081.8,2081.0,1.20129846]
[1772729279856,3.14427714,2081.8,2081.0,1.20239846]
[1772729280053,3.14427714,2081.6,2081.0,0.0011]
[1772729280654,3.14427714,2081.4,2080.8,0.0011]
[1772729280852,3.14427714,2081.4,2080.8,1.20254802]
[1772729281069,4.34621867,2081.7,2080.8,1.20254802]
[1772729281278,4.34621867,2081.7,2080.8,4.20616129]
[1772729281652,3.14427714,2081.5,2080.8,0.0011]
[1772729281975,1.20194153,2081.7,2080.8,4.20616151]
[1772729282153,4.07078936,2081.6,2080.8,4.20616151]
[1772729282353,1.20103061,2081.6,2080.8,4.20616151]
[1772729282555,1.2019433,2081.7,2080.9,3.00361327]
[1772729282761,0.001,2081.7,2080.9,3.00361327]
[1772729282977,0.001,2081.7,2081.0,3.00361327]
[1772729283364,1.20069175,2082.2,2081.0,3.00361327]
[1772729283677,1.20056551,2082.4,2081.2,3.00361327]
[1772729283879,4.80295588,2082.5,2081.2,3.00361327]
[1772729283880,1.20148514,2082.5,2081.2,3.00361327]
[1772729284078,0.001,2082.5,2081.3,1.20117234]
[1772729284404,2.87218963,2082.5,2081.4,3.00361327]
[1772729284679,2.87218963,2082.5,2081.5,4.14061327]
[1772729285974,2.87218963,2082.5,2081.3,1.20117234]
[1772729286175,3.14427714,2082.2,2080.9,4.2050165]
[1772729286372,3.14427714,2082.0,2080.9,4.2050165]
[1772729287257,6.63989642,2082.3,2081.0,3.00361327]
[1772729287454,3.14427714,2082.1,2080.9,1.20140323]
[1772729287784,3.14427714,2081.8,2080.8,1.20252848]
[1772729288185,4.34520696,2081.8,2080.8,1.20252848]
[1772729288387,4.34520696,2081.8,2080.9,3.00361327]
[1772729288388,1.20092982,2081.8,2080.9,3.00361327]
[1772729288789,4.80312104,2082.0,2080.9,3.00361327]
[1772729289284,6.0155658,2081.9,2080.9,3.00361327]
[1772729289492,3.14427714,2081.9,2080.9,3.00361327]
[1772729289669,3.14427714,2081.9,2080.8,1.20252848]
[1772729289670,3.14427714,2081.7,2080.8,1.20252848]
[1772729289870,3.14427714,2081.7,2080.8,0.0011]
[1772729290169,4.34527637,2081.6,2080.8,0.0011]
[1772729292077,4.34527637,2081.6,2081.0,0.0011]
[1772729292277,4.34527637,2081.6,2080.7,1.07033497]
[1772729292464,4.34527637,2081.6,2080.5,0.0011]
[1772729292465,3.14427714,2081.4,2080.5,0.0011]
[1772729292670,3.14427714,2081.2,2080.5,0.0011]
[1772729292875,6.01677406,2081.1,2080.5,0.0011]
[1772729293074,3.14427714,2081.1,2080.5,0.0011]
[1772729293591,3.14427714,2081.1,2080.5,1.20272939]
[1772729293763,3.14427714,2081.1,2080.5,0.0011]
[1772729294387,1.2013455,2081.0,2080.5,0.0011]
[1772729294771,3.14427714,2080.8,2080.3,0.0011]
[1772729297196,1.20151871,2080.7,2080.3,0.0011]
[1772729297568,4.34578532,2080.8,2080.3,0.0011]
[1772729297770,1.464,2080.9,2080.3,0.0011]
[1772729298293,3.14427714,2080.8,2080.3,0.0011]
[1772729298495,3.14427714,2080.8,2080.0,0.0011]
[1772729298668,3.14427714,2080.6,2079.8,0.0011]
[1772729298868,3.14427714,2080.4,2079.8,0.0011]
[1772729299063,1.20180751,2080.2,2079.8,0.0011]
[1772729299275,2.79564516,2080.1,2079.8,0.0011]
[1772729299696,1.20180751,2080.2,2079.8,0.0011]
[1772729300064,3.99745267,2080.2,2079.5,0.0011]
[1772729300770,2.79564516,2080.1,2079.5,0.0011]
[1772729301185,1.20192307,2080.0,2079.5,0.0011]
[1772729301780,3.99756823,2080.0,2079.5,0.0011]
[1772729302515,2.79564516,2079.9,2079.5,0.0011]
[1772729302714,4.26064516,2079.8,2078.8,7.79419645]
[1772729302916,1.20191207,2080.1,2078.9,2.98373454]
[1772729303412,1.20191207,2080.1,2079.1,2.98373454]
[1772729304316,3.99755723,2080.1,2080.0,0.0011]
[1772729304475,2.79564516,2080.0,2079.1,2.98373454]
[1772729304675,0.001,2079.9,2079.1,2.98373454]
[1772729304901,0.001,2079.9,2079.8,0.0011]
[1772729305582,1.2016577,2080.5,2079.8,0.0011]
[1772729305990,1.20162367,2080.6,2079.8,0.0011]
[1772729307107,2.81332969,2080.5,2079.8,0.0011]
[1772729307287,4.01502167,2080.4,2079.8,0.0011]
[1772729307672,2.81332969,2080.3,2079.8,0.0011]
[1772729308216,1.20169198,2080.4,2079.8,0.0011]
[1772729308217,2.81332969,2080.1,2079.8,0.0011]
[1772729309372,1.466,2080.2,2079.8,0.0011]
[1772729309572,2.66763422,2080.5,2079.8,0.0011]
[1772729309979,2.81332969,2080.4,2079.8,0.0011]
[1772729310902,1.20163422,2080.5,2079.8,0.0011]
[1772729311102,4.27932969,2080.8,2079.8,2.99735664]
[1772729311398,2.81332969,2080.7,2079.8,0.0011]
[1772729311804,4.01489003,2080.7,2079.8,0.0011]
[1772729312010,1.20156034,2080.7,2079.8,2.99735664]
[1772729312709,7.61893041,2081.0,2079.8,2.99735664]
[1772729312710,4.28032969,2081.0,2079.8,2.99735664]
[1772729312906,1.20138838,2081.0,2079.8,2.99735664]
[1772729313891,4.80538202,2081.1,2080.0,2.99625664]
[1772729314207,7.61871171,2081.1,2080.0,2.99625664]
[1772729314785,1.20117234,2081.3,2080.0,2.99625664]
[1772729315105,4.01450203,2081.3,2080.1,2.49389045]
[1772729315327,4.01450203,2081.3,2080.2,2.99625664]
[1772729315486,1.20114951,2081.4,2080.2,2.99625664]
[1772729315879,1.20114951,2081.4,2080.3,1.20174974]
[1772729316110,1.20114951,2081.4,2080.4,2.99625664]
[1772729317221,4.01079733,2081.4,2080.4,2.99625664]
[1772729317591,0.001,2080.9,2080.4,2.99625664]
[1772729318318,0.001,2080.9,2080.5,1.20163422]
[1772729319313,0.001,2080.9,2080.1,6.49141264]
[1772729319500,0.001,2080.9,2080.2,4.80710186]
[1772729319807,0.001,2080.9,2080.3,2.79461468]
[1772729320217,0.001,2080.9,2080.4,3.99630666]
[1772729320589,0.001,2080.9,2080.4,2.79461468]
[1772729320984,0.001,2080.9,2080.1,2.49499045]
[1772729321185,2.81064782,2080.9,2080.1,1.20295629]
[1772729321389,2.81064782,2080.9,2080.1,1.2029587]
[1772729322191,1.20146097,2080.8,2080.1,1.2029587]
[1772729322495,2.80964782,2080.7,2080.1,0.0011]
[1772729322701,2.80964782,2080.6,2080.1,0.0011]
[1772729323205,2.80964782,2080.6,2079.9,0.0011]
[1772729323919,2.80964782,2080.4,2079.9,0.0011]
[1772729324221,1.20174974,2080.3,2079.9,0.0011]
[1772729324997,2.80964782,2080.2,2079.9,0.0011]
[1772729326311,1.20186529,2080.1,2079.9,0.0011]
[1772729326507,4.01151311,2080.1,2079.9,0.0011]
[1772729326801,4.01151311,2080.1,2079.6,0.0011]
[1772729327307,1.20186529,2080.1,2079.6,0.0011]
[1772729327566,2.66778479,2080.3,2079.6,2.79571468]
[1772729328539,2.66778257,2080.3,2079.7,1.20209645]
[1772729328739,2.66779084,2080.3,2079.7,1.20209645]
[1772729328903,1.20157646,2080.6,2079.7,1.20209645]
[1772729329103,1.20157646,2080.6,2079.8,2.86395233]
[1772729329525,4.8060567,2080.8,2079.8,2.86395233]
[1772729329720,2.86486245,2080.7,2080.1,0.0011]
[1772729331017,1.20157646,2080.6,2080.1,0.0011]
[1772729332033,1.20146097,2080.8,2080.1,0.0011]
[1772729332718,2.86567649,2080.7,2080.1,0.0011]
[1772729333112,4.06722628,2080.7,2080.1,0.0011]
[1772729333326,1.20154979,2080.7,2080.1,0.0011]
[1772729334632,1.20154402,2080.7,2080.1,0.0011]
[1772729334818,1.20154402,2080.7,2080.1,2.86505233]
[1772729335021,1.20154402,2080.7,2080.1,0.0011]
[1772729335222,2.94403003,2080.7,2080.1,0.0011]
[1772729335421,2.94403003,2080.5,2080.1,0.0011]
[1772729335727,2.94403003,2080.4,2079.9,0.0011]
[1772729337447,2.94403003,2080.2,2079.9,0.0011]
[1772729338036,4.41303003,2080.2,2079.9,0.0011]
[1772729338349,2.94403003,2080.2,2079.9,0.0011]
[1772729338648,2.94403003,2080.2,2079.6,0.0011]
[1772729338848,2.94403003,2080.0,2079.6,0.0011]
[1772729340351,1.20198086,2079.9,2079.6,0.0011]
[1772729341247,2.94403003,2079.8,2078.6,2.86395233]
[1772729341417,2.94403003,2079.6,2078.6,2.86395233]
[1772729341821,1.47,2079.8,2078.6,2.86395233]
[1772729341822,5.81123435,2079.5,2078.6,2.86395233]
[1772729342015,2.86720432,2079.4,2078.6,2.86395233]
[1772729342219,2.86720432,2079.4,2078.5,1.20389047]
[1772729342220,1.20221207,2079.5,2078.8,1.20261689]
[1772729342425,1.20221207,2079.5,2078.7,4.06768263]
[1772729342619,4.14610667,2079.8,2078.8,2.86395233]
[1772729342852,5.61610667,2079.8,2078.8,2.86395233]
[1772729343036,1.20207664,2079.8,2078.8,2.86395233]
[1772729343951,1.20207664,2079.8,2079.5,0.0011]
[1772729344533,4.80815463,2079.9,2079.5,0.0011]
[1772729346154,4.80815463,2079.9,2079.3,0.0011]
[1772729346155,2.94403003,2079.8,2079.3,0.0011]
[1772729346327,2.94403003,2079.8,2078.9,1.202529]
[1772729346647,2.94403003,2079.6,2078.7,2.86505233]
[1772729346953,1.20209645,2079.7,2078.7,2.86505233]
[1772729347141,1.20207932,2079.8,2078.7,2.86505233]
[1772729347342,1.20186529,2080.1,2078.7,2.86505233]
[1772729348229,4.14588369,2080.2,2078.7,2.86505233]
[1772729348435,2.86525229,2080.1,2078.7,2.86505233]
[1772729348651,2.94403003,2079.9,2079.0,2.86395233]
[1772729349133,4.41603003,2079.8,2078.9,1.20255904]
[1772729350459,4.41603003,2079.8,2078.9,2.86395233]
[1772729350764,1.20209645,2079.7,2079.0,1.2025012]
[1772729351132,1.20209645,2079.7,2079.0,4.06645353]
[1772729351332,1.20192307,2080.0,2079.1,2.86395233]
[1772729351562,4.14677977,2080.4,2079.1,2.86395233]
[1772729351760,9.14874862,2080.3,2079.1,2.86395233]
[1772729351930,2.8686445,2080.2,2079.1,2.86395233]
[1772729352445,2.8686445,2080.2,2079.2,2.86395233]
[1772729352762,5.61977977,2080.4,2079.4,2.86395233]
[1772729352763,0.001,2080.4,2079.4,2.86395233]
[1772729353060,1.20272874,2080.4,2079.4,2.86395233]
[1772729353254,2.86984529,2080.3,2079.4,2.86395233]
[1772729353437,2.94403003,2080.2,2079.3,1.2023277]
[1772729354459,2.94403003,2080.2,2079.3,4.06628003]
[1772729354650,1.20186529,2080.1,2079.3,2.86395233]
[1772729354851,5.81438463,2080.0,2079.1,2.33044231]
[1772729355159,2.94403003,2080.0,2079.1,2.33044231]
[1772729356261,2.94403003,2080.0,2079.3,0.0011]
[1772729356462,2.94503003,2080.0,2079.3,0.0011]
[1772729356644,4.14612648,2079.7,2079.3,0.0011]
[1772729358267,2.94403003,2079.6,2079.0,0.0011]
[1772729358639,2.94403003,2079.4,2079.0,0.0011]
[1772729359168,1.20221207,2079.5,2079.0,0.0011]
[1772729359488,4.12666275,2079.5,2079.0,0.0011]
[1772729360243,1.20221207,2079.5,2079.0,0.0011]
[1772729361868,4.80884828,2079.6,2079.0,0.0011]
[1772729362071,2.92445068,2079.5,2079.0,0.0011]
[1772729363474,4.80884828,2079.6,2079.0,0.0011]
[1772729363846,2.87170047,2079.5,2079.0,0.0011]
[1772729364043,4.12672056,2079.4,2079.0,0.0011]
[1772729365044,4.12672056,2079.4,2078.7,0.0011]
[1772729365045,2.92445068,2079.3,2078.7,0.0011]
[1772729365245,1.20226988,2079.4,2078.7,0.0011]
[1772729365246,5.79883999,2079.2,2078.7,0.0011]
[1772729365576,5.79819514,2079.1,2078.7,0.0011]
[1772729365756,2.92445068,2079.1,2078.7,0.0011]
[1772729365956,2.92445068,2079.1,2078.5,0.0011]
[1772729365957,7.00069634,2079.0,2078.5,0.0011]
[1772729366147,2.92445068,2078.8,2078.3,0.0011]
[1772729366475,7.27504237,2078.7,2078.1,0.0011]
[1772729366647,5.73608159,2078.6,2078.1,0.0011]
[1772729367014,2.8624899,2078.4,2077.5,1.20332596]
[1772729367171,3.76888996,2078.7,2077.5,1.20332596]
[1772729367172,2.8624899,2078.3,2077.5,1.20332596]
[1772729367777,2.8624899,2078.3,2077.3,3.96141173]
[1772729367976,1.20302199,2078.1,2077.3,3.96141173]
[1772729368274,4.06551189,2078.1,2077.2,2.75796688]
[1772729368986,2.8624899,2078.0,2077.2,2.75796688]
[1772729369277,2.8624899,2078.0,2077.7,0.0011]
[1772729370076,2.8624899,2078.1,2077.7,0.0011]
[1772729370374,2.8624899,2078.1,2077.2,0.0011]
[1772729370375,2.8624899,2078.1,2077.2,1.20463428]
[1772729370874,2.8624899,2078.1,2077.2,3.96260116]
[1772729371084,1.479,2078.0,2077.2,2.75906688]
[1772729371381,4.3414899,2078.0,2077.2,0.0011]
[1772729371681,1.479,2078.0,2077.3,2.75796688]
[1772729372052,1.20313778,2077.9,2077.3,1.20343361]
[1772729372579,9.15393762,2078.0,2077.3,1.20343361]
[1772729372580,1.20312152,2078.0,2077.3,1.20343361]
[1772729373180,2.68304862,2078.1,2077.3,1.20343361]
[1772729373482,1.20301055,2078.2,2077.4,2.75796688]
[1772729373670,4.06550045,2078.2,2077.2,0.0011]
[1772729373861,2.8624899,2078.1,2077.2,1.2046344]
[1772729374179,4.06555225,2078.1,2077.2,2.75906688]
[1772729374511,1.20300611,2078.2,2077.2,2.75906688]
[1772729374876,9.15298154,2078.8,2077.2,2.75906688]
[1772729375063,4.06516464,2078.7,2077.4,2.75796688]
[1772729375257,2.8624899,2078.6,2077.4,2.75796688]
[1772729376160,1.20279047,2078.5,2077.6,2.75796688]
[1772729376554,1.20269402,2078.7,2077.6,2.75796688]
[1772729376755,1.20244336,2079.1,2077.6,2.75796688]
[1772729377379,2.8624899,2079.0,2077.6,2.75796688]
[1772729377582,2.8624899,2079.0,2077.8,2.75796688]
[1772729378081,2.8624899,2078.7,2077.8,2.75796688]
[1772729378377,2.8624899,2078.7,2077.4,2.75796688]
[1772729378681,2.8624899,2078.5,2077.4,2.75796688]
[1772729380288,4.06533824,2078.4,2077.4,3.96135261]
[1772729380484,1.20282128,2078.5,2077.5,2.75796688]
[1772729380711,1.20261689,2078.8,2077.5,2.75796688]
[1772729380988,1.2033731,2079.3,2077.7,2.75796688]
[1772729381282,4.065863,2079.3,2077.7,2.75796688]
[1772729381666,0.001,2078.5,2077.7,2.75796688]
[1772729382373,0.001,2078.5,2078.0,2.75796688]
[1772729383458,0.001,2078.5,2077.7,3.96117921]
[1772729383661,0.001,2078.5,2077.7,1.20321233]
[1772729384487,0.001,2078.5,2077.5,7.57098127]
[1772729384684,0.001,2078.5,2077.6,2.75796688]
[1772729385577,1.20248794,2079.1,2077.6,2.90745187]
[1772729385786,2.8624899,2079.0,2077.6,2.75796688]
[1772729385988,2.8624899,2079.0,2077.8,2.75796688]
[1772729386371,1.20248794,2079.1,2077.8,2.75796688]
[1772729386575,4.80969666,2079.2,2078.0,2.75796688]
[1772729386576,7.67218656,2079.2,2078.0,2.75796688]
[1772729387302,1.20238553,2079.2,2078.2,2.75796688]
[1772729388579,0.001,2079.3,2078.4,2.75796688]
[1772729389399,2.77460187,2079.2,2078.3,1.20290622]
[1772729390315,0.001,2079.3,2078.4,2.72081666]
[1772729390675,0.001,2079.3,2078.5,1.20279047]
[1772729391176,2.77560187,2079.3,2078.4,3.92363096]
[1772729391684,2.77560187,2079.3,2078.4,1.2028143]
[1772729391880,2.77560187,2079.3,2078.3,3.880666]
[1772729392399,2.77560187,2079.3,2078.3,6.60148266]
[1772729392619,0.001,2079.3,2078.6,2.72081666]
[1772729393402,1.20208596,2079.8,2078.7,2.72081666]
[1772729393579,0.001,2079.0,2078.7,2.72081666]
[1772729393778,1.20208596,2079.8,2078.7,2.72081666]
[1772729394675,1.20208596,2079.8,2078.8,3.92343355]
[1772729395399,2.77460187,2079.7,2078.5,4.81105141]
[1772729396009,2.77460187,2079.7,2078.5,1.20279047]
[1772729396989,2.77460187,2079.5,2078.4,7.53219108]
[1772729397186,2.77460187,2079.5,2078.1,5.93665606]
[1772729397187,2.77460187,2079.5,2078.1,3.92378076]
[1772729397507,2.77460187,2079.5,2078.2,4.81185234]
[1772729397701,2.77460187,2079.5,2078.2,7.532669]
[1772729397880,2.77460187,2079.5,2078.3,2.72081666]
[1772729398414,5.52460187,2079.4,2078.3,2.72081666]
[1772729398616,2.77460187,2079.3,2078.2,1.2029641]
[1772729398981,2.77460187,2079.1,2078.2,1.2029641]
[1772729400588,2.75,2079.4,2078.3,2.72081666]
[1772729400783,12.30362772,2079.9,2078.2,1.2029641]
[1772729400784,4.80736938,2080.2,2078.5,2.72081666]
[1772729400984,1.20180751,2080.2,2078.7,2.72081666]
[1772729401281,3.97638557,2080.3,2078.9,2.72081666]
[1772729401514,1.2017837,2080.3,2078.9,2.72081666]
[1772729401699,2.77460187,2080.1,2078.9,2.72081666]
[1772729402016,2.77560187,2080.0,2078.9,2.72081666]
[1772729402788,0.001,2080.0,2078.9,2.72081666]
[1772729402989,0.001,2080.0,2079.1,2.72081666]
[1772729404318,0.001,2080.4,2079.3,2.72081666]
[1772729404488,0.001,2080.4,2079.2,0.14948499]
[1772729404489,0.001,2080.4,2079.5,2.72081666]
[1772729404886,0.001,2080.4,2079.7,2.72081666]
[1772729406014,0.001,2080.4,2079.5,1.2021901]
[1772729406223,2.77560187,2080.4,2078.6,3.92354926]
[1772729406404,2.77460187,2080.1,2078.6,3.92354926]
[1772729406584,2.77460187,2079.8,2078.6,3.92354926]
[1772729407119,1.20209645,2079.7,2078.7,2.72081666]
[1772729407717,3.97669832,2079.7,2078.7,2.72081666]
[1772729408317,4.80838582,2080.1,2078.7,2.72081666]
[1772729408318,2.77460187,2080.1,2078.7,2.72081666]
[1772729408515,4.8073405,2080.2,2078.9,2.72081666]
[1772729408918,1.20178539,2080.3,2078.9,2.72081666]
[1772729409118,4.80799899,2080.4,2079.3,2.72081666]
[1772729409601,7.58260086,2080.4,2079.3,2.72081666]
[1772729410608,1.20269198,2080.4,2079.3,2.72081666]
[1772729410814,0.001,2080.4,2079.3,2.72081666]
[1772729411188,0.001,2080.4,2079.5,2.72081666]
[1772729411395,2.77460187,2080.3,2079.0,2.72081666]
[1772729411925,0.001,2080.4,2078.9,4.81002118]
[1772729411926,0.001,2080.4,2079.2,2.72081666]
[1772729412626,2.77560187,2080.4,2079.2,3.84381666]
[1772729414310,1.20174974,2080.3,2079.3,1.2023277]
[1772729414609,3.97635161,2080.3,2079.2,5.04615837]
[1772729415700,2.77460187,2080.2,2078.9,2.72081666]
[1772729416416,3.97646716,2080.1,2079.0,1.2025012]
[1772729417522,3.97646716,2080.1,2079.1,0.0011]
[1772729420523,1.20198086,2079.9,2079.1,0.0011]
[1772729421500,3.71058247,2079.9,2079.1,0.0011]
[1772729421897,1.2019655,2080.0,2079.1,2.74501591]
[1772729422296,4.80787964,2080.1,2079.2,1.20238553]
[1772729423536,4.80787964,2080.1,2079.2,3.94630144]
[1772729423841,2.8696119,2080.0,2079.2,3.94630144]
[1772729424209,2.8696119,2080.0,2079.2,2.74391591]
[1772729424413,1.20198086,2079.9,2079.2,3.9462715]
[1772729424813,1.20198086,2079.9,2079.2,3.94628479]
[1772729425121,3.71058247,2079.9,2079.1,0.0011]
[1772729425318,2.50860161,2079.8,2079.1,0.0011]
[1772729426543,1.20209645,2079.7,2079.1,0.0011]
[1772729428440,7.32742284,2079.8,2079.1,0.0011]
[1772729428637,2.87249469,2079.7,2079.1,0.0011]
[1772729428821,7.32742284,2079.8,2079.1,0.0011]
[1772729429022,2.87231515,2079.7,2079.1,0.0011]
[1772729429619,2.87231515,2079.7,2079.3,0.0011]
[1772729430113,0.001,2079.9,2079.4,1.124]
[1772729430319,0.001,2079.9,2079.6,1.20215426]
[1772729431438,0.001,2079.9,2079.3,1.2034096]
[1772729431742,0.001,2079.9,2079.3,0.0011]
[1772729431947,2.52003702,2079.9,2079.3,0.0011]
[1772729432444,2.51903702,2079.7,2079.3,0.0011]
[1772729432618,2.51903702,2079.7,2079.1,0.0011]
[1772729434851,2.51903702,2079.5,2079.1,0.0011]
[1772729435427,2.51903702,2079.5,2078.9,0.0011]
[1772729437351,2.51903702,2079.3,2078.9,0.0011]
[1772729439530,2.51903702,2079.1,2078.6,0.0011]
[1772729441748,1.2025012,2079.0,2078.6,0.0011]
[1772729442343,1.2025012,2079.0,2078.9,0.0011]
[1772729443444,3.72153822,2079.0,2078.6,0.0011]
[1772729443948,4.80954505,2079.2,2078.6,0.0011]
[1772729443949,1.20238553,2079.2,2078.6,0.0011]
[1772729444538,1.20231251,2079.4,2078.6,2.44091906]
[1772729444738,3.72134953,2079.4,2078.6,2.44091906]
[1772729445045,2.51903702,2079.3,2078.6,0.0011]
[1772729445619,1.20231251,2079.4,2078.6,2.43346143]
[1772729445829,4.81007954,2079.5,2078.7,3.63503617]
[1772729446147,1.20321207,2079.5,2078.7,3.63503617]
[1772729447760,1.20321207,2079.5,2078.8,2.41762739]
[1772729447761,0.001,2079.5,2078.8,2.41762739]
[1772729448056,0.001,2079.9,2079.0,2.41762739]
[1772729448259,0.001,2079.9,2079.2,2.41762739]
[1772729448458,0.001,2080.2,2079.4,2.40934758]
[1772729448659,1.20281256,2080.2,2079.4,2.40934758]
[1772729448863,3.8105887,2080.2,2079.1,0.065536]
[1772729449037,0.001,2080.2,2079.3,2.40215905]
[1772729449442,0.001,2080.2,2079.5,2.39721332]
[1772729449669,0.001,2080.2,2079.7,2.39721332]
[1772729449868,0.001,2080.2,2079.8,4.72025197]
[1772729450358,0.001,2080.4,2079.9,2.39721332]
[1772729450725,0.001,2080.4,2080.0,1.121]
[1772729450929,0.001,2080.4,2079.9,2.39721332]
[1772729451126,0.001,2080.4,2080.0,2.39013734]
[1772729451347,0.001,2080.9,2080.2,2.39013734]
[1772729451533,0.001,2080.9,2080.4,2.39013734]
[1772729451927,0.001,2080.9,2080.5,1.20163422]
[1772729454439,0.001,2080.9,2080.6,1.121]
[1772729454852,0.001,2080.9,2080.5,1.20163422]
[1772729455047,0.001,2080.9,2080.6,1.121]
[1772729455626,2.60777614,2081.4,2080.6,1.121]
[1772729455831,3.80890769,2081.4,2080.6,1.121]
[1772729456151,3.80890769,2081.4,2080.7,1.20151871]
[1772729456341,2.60777614,2081.4,2080.7,1.20151871]
[1772729456539,3.80889602,2081.4,2080.7,1.20151871]
[1772729457536,2.60777614,2081.3,2080.6,1.121]
[1772729457933,2.60777614,2081.3,2080.0,0.14948499]
[1772729457934,2.60777614,2081.1,2080.2,1.20174974]
[1772729458145,1.20118208,2081.3,2080.3,2.34117828]
[1772729458344,3.80889576,2081.4,2080.3,2.34117828]
[1772729458856,2.60777614,2081.4,2080.3,2.34117828]
[1772729459166,3.80865999,2081.8,2080.5,2.33454299]
[1772729459535,2.60777614,2081.7,2080.5,2.33454299]
[1772729460060,1.20099923,2081.6,2080.6,1.20157646]
[1772729460446,2.60777614,2081.7,2080.7,2.32796604]
[1772729460646,3.80873845,2081.7,2080.8,1.122]
[1772729460843,2.60777614,2082.0,2080.9,2.32144445]
[1772729461160,3.80855939,2082.0,2080.9,2.32144445]
[1772729461742,2.60777614,2081.9,2080.9,2.32144445]
[1772729461938,2.60777614,2081.9,2080.8,1.122]
[1772729462240,2.60777614,2081.9,2080.9,1.20140323]
[1772729462241,2.60777614,2081.7,2080.9,1.20140323]
[1772729462558,3.80848696,2082.1,2081.0,2.31498238]
[1772729463474,2.60777614,2082.0,2081.0,2.31498238]
[1772729463858,2.60777614,2082.0,2081.0,1.122]
[1772729464057,1.20082616,2081.9,2081.1,1.20128778]
[1772729464295,2.60777614,2081.8,2081.0,1.20130154]
[1772729464634,2.60777614,2081.6,2080.6,1.20154078]
[1772729464942,2.60777614,2081.6,2080.4,1.20163882]
[1772729465857,2.60777614,2081.6,2080.1,1.20182537]
[1772729466061,2.60777614,2081.6,2080.2,2.28965994]
[1772729466238,2.60777614,2081.4,2080.3,3.49140968]
[1772729466442,2.60777614,2081.4,2080.8,0.0011]
[1772729466772,2.60877614,2081.4,2080.3,1.20174974]
[1772729467089,2.60877614,2081.4,2080.5,0.0011]
[1772729468769,2.60777614,2081.2,2080.5,0.0011]
[1772729470380,2.60777614,2081.1,2080.5,0.0011]
[1772729470552,1.2013455,2081.0,2080.5,0.0011]
[1772729471874,3.80908164,2081.1,2080.5,0.0011]
[1772729472591,3.80907514,2081.1,2080.5,0.0011]
[1772729473094,2.60777614,2081.0,2080.5,0.0011]
[1772729473403,0.001,2081.4,2080.5,2.31130605]
[1772729474093,0.001,2081.4,2080.7,2.3043758]
[1772729474263,2.60777614,2081.8,2080.9,2.3033758]
[1772729474462,2.60777614,2081.8,2080.5,2.3044758]
[1772729474659,2.60777614,2081.8,2080.6,1.20157646]
[1772729474660,2.60777614,2081.6,2080.6,1.20157646]
[1772729475800,2.60777614,2081.5,2080.5,0.0011]
[1772729476489,2.60777614,2081.3,2080.5,0.0011]
[1772729476800,2.60777614,2081.1,2080.5,0.0011]
[1772729478764,2.60777614,2080.9,2080.7,0.0011]
[1772729479199,1.2013455,2081.0,2080.7,0.0011]
[1772729479495,3.81690957,2081.2,2080.7,0.0011]
[1772729481523,5.48508167,2081.1,2080.7,0.0011]
[1772729481826,2.61564154,2081.0,2080.7,0.0011]
[1772729483018,2.61564154,2080.8,2080.5,0.0011]
[1772729483994,2.61564154,2080.8,2079.9,0.0011]
[1772729484297,2.61564154,2080.6,2079.9,1.20307174]
[1772729485118,1.20163422,2080.5,2079.9,0.0011]
[1772729486093,2.61564154,2080.4,2079.9,0.0011]
[1772729487216,1.20174974,2080.3,2079.9,0.0011]
[1772729488239,2.43159545,2080.2,2079.9,0.0011]
[1772729488646,2.43159545,2080.2,2079.4,0.0011]
[1772729488851,2.43159545,2080.0,2079.4,0.0011]
[1772729489221,2.43159545,2079.8,2079.4,0.0011]
[1772729489440,1.20198086,2079.9,2079.4,0.0011]
[1772729489945,1.20196634,2080.0,2079.4,0.0011]
[1772729490144,3.63350066,2080.1,2079.4,0.0011]
[1772729490554,2.43159545,2080.0,2079.4,0.0011]
[1772729491345,1.20198086,2079.9,2079.4,0.0011]
[1772729491947,1.20186167,2080.2,2079.4,0.0011]
[1772729492149,1.20186167,2080.2,2079.9,0.0011]
[1772729492316,3.63345712,2080.2,2079.9,0.0011]
[1772729492514,2.43159545,2080.2,2079.9,0.0011]
[1772729493216,1.20186529,2080.1,2079.9,0.0011]
[1772729494218,2.67472039,2080.4,2079.9,0.0011]
[1772729494444,5.10631584,2080.4,2079.9,0.0011]
[1772729495135,2.43159545,2080.3,2079.9,0.0011]
[1772729495535,2.26688099,2080.8,2079.9,2.18467627]
[1772729495844,0.79088099,2080.8,2079.9,2.18467627]
[1772729496532,0.79088099,2080.8,2079.9,0.0011]
[1772729496533,0.02403456,2080.8,2079.9,0.0011]
[1772729496737,0.02403456,2080.8,2080.2,1.53736221]
[1772729496956,0.001,2081.2,2080.2,1.53736221]
[1772729497257,0.02503456,2081.2,2080.2,1.53736221]
[1772729497430,0.02503456,2081.2,2080.3,1.20174974]
[1772729497431,1.22626687,2081.2,2080.3,1.20174974]
[1772729497965,2.45563001,2081.1,2080.3,1.20174974]
[1772729498254,2.43159545,2081.1,2080.3,1.20174974]
[1772729499028,0.02403456,2081.0,2080.3,1.20174974]
[1772729499435,0.001,2081.2,2080.5,1.20163422]
[1772729499634,2.45563001,2081.1,2080.2,1.20180751]
[1772729501563,2.43159545,2080.9,2079.9,1.20308086]
[1772729503288,2.43159545,2080.7,2079.9,1.20308086]
[1772729503455,2.43159545,2080.7,2079.9,0.0011]
[1772729503655,3.65720647,2080.6,2079.9,0.0011]
[1772729503852,2.43159545,2080.5,2079.9,0.0011]
[1772729504887,0.02403456,2080.4,2079.9,0.0011]
[1772729505060,4.80730587,2080.7,2079.9,1.34408766]
[1772729505061,0.001,2080.7,2079.9,1.34408766]
[1772729505264,1.20251938,2080.7,2079.9,1.34408766]
[1772729505667,1.20251938,2080.7,2080.0,1.20192307]
[1772729506254,3.63411483,2080.7,2080.0,1.20192307]
[1772729507259,2.43159545,2080.6,2080.0,1.20192307]
[1772729507690,3.63322967,2080.5,2079.9,0.0011]
[1772729508095,1.2016242,2080.6,2079.9,0.0011]
[1772729508399,1.20158218,2080.6,2079.9,0.0011]
[1772729509583,3.73783354,2080.6,2079.9,0.0011]